bitfinex/quotes_SOLUSD_20250830
["timestamp","ask_amount","ask_price","bid_price","bid_amount"]
[1756526063988,0.06,206.25,206.24,44.4508815]
[1756526064193,0.06,206.25,206.24,49.0312501]
[1756526064505,0.06,206.25,206.24,62.62684411]
[1756526065017,0.06,206.25,206.24,44.4508815]
[1756526065182,0.06,206.25,206.24,44.30871993]
[1756526066819,0.06,206.25,206.24,48.88908853]
[1756526067999,0.06,206.25,206.24,62.62684411]
[1756526069013,0.06,206.25,206.24,63.1117161]
[1756526069394,0.1,206.28,206.25,13.73775558]
[1756526069595,0.1,206.28,206.27,4.72253017]
[1756526069986,0.1,206.28,206.27,5.42253017]
[1756526070916,0.1,206.28,206.27,44.16253017]
[1756526071499,0.1,206.28,206.27,49.0105449]
[1756526072516,0.1,206.28,206.27,62.60613891]
[1756526072714,0.1,206.29,206.28,13.73775558]
[1756526072914,1e-08,206.29,206.28,19.03812418]
[1756526074723,1e-08,206.29,206.28,23.88590389]
[1756526075509,1e-08,206.29,206.28,23.91590389]
[1756526078339,1e-08,206.29,206.28,25.85769889]
[1756526085822,1e-08,206.29,206.28,30.43806749]
[1756526086443,1e-08,206.29,206.28,25.85769889]
[1756526087141,1e-08,206.29,206.28,30.43806749]
[1756526087316,1e-08,206.29,206.28,25.85769889]
[1756526087730,1e-08,206.29,206.28,30.43806749]
[1756526088730,1e-08,206.29,206.28,25.85769889]
[1756526089235,1e-08,206.29,206.28,30.43806749]
[1756526090342,1e-08,206.32,206.31,39.73775558]
[1756526090540,1e-08,206.32,206.31,82.97812418]
[1756526090839,1e-08,206.32,206.31,83.69812418]
[1756526091416,1e-08,206.32,206.31,88.54519897]
[1756526091813,1e-08,206.32,206.31,49.16519897]
[1756526092033,1e-08,206.32,206.31,88.54519897]
[1756526094117,1e-08,206.32,206.31,83.96483037]
[1756526094330,1e-08,206.32,206.31,88.54519897]
[1756526095643,1e-08,206.32,206.31,90.48680497]
[1756526096330,1e-08,206.32,206.31,88.54519897]
[1756526096529,1e-08,206.32,206.31,90.48680497]
[1756526097139,1e-08,206.32,206.31,90.97151244]
[1756526097843,0.06,206.34,206.31,90.97151244]
[1756526097844,0.06,206.35,206.34,26.0]
[1756526098140,0.06,206.35,206.34,82.81596261]
[1756526099145,0.06,206.35,206.34,88.38233267]
[1756526099548,0.06,206.35,206.34,88.52449424]
[1756526100041,0.06,206.4,206.35,13.73775558]
[1756526100235,0.48501309,206.46,206.39,13.73775558]
[1756526100437,0.06,206.45,206.41,0.14216157]
[1756526100627,0.06,206.45,206.43,4.5803686]
[1756526100940,0.06,206.45,206.44,38.62]
[1756526101121,4.5803686,206.49,206.44,43.46394279]
[1756526101522,4.5803686,206.48,206.44,43.46394279]
[1756526101722,0.06,206.47,206.44,43.46394279]
[1756526101931,0.06,206.46,206.44,43.46394279]
[1756526102133,0.06,206.5,206.46,0.14216157]
[1756526102346,0.06,206.52,206.47,43.2003686]
[1756526102538,0.06,206.51,206.47,43.2003686]
[1756526102929,4.6403686,206.5,206.44,4.84394279]
[1756526103245,0.06,206.49,206.45,38.62]
[1756526103452,0.06,206.48,206.45,43.2003686]
[1756526103619,0.06,206.5,206.46,4.5803686]
[1756526103824,0.06,206.5,206.47,38.62]
[1756526104021,4.6803686,206.53,206.47,43.2003686]
[1756526104226,0.16,206.53,206.48,38.62]
[1756526104449,0.1,206.53,206.5,4.5803686]
[1756526104637,0.1,206.53,206.51,38.62]
[1756526104949,0.16,206.53,206.51,38.62]
[1756526105433,4.6403686,206.52,206.46,4.5803686]
[1756526105638,0.06,206.51,206.47,38.62]
[1756526105845,0.1,206.53,206.48,4.72253017]
[1756526106047,0.16,206.53,206.49,38.6]
[1756526106351,0.06,206.52,206.49,38.6]
[1756526106529,0.06,206.51,206.5,38.6]
[1756526107136,4.6803686,206.53,206.5,38.6]
[1756526107137,0.1,206.53,206.5,43.99253017]
[1756526107331,0.1,206.53,206.52,4.9843076]
[1756526107537,0.1,206.53,206.52,43.5843076]
[1756526107738,0.1,206.53,206.52,48.8346762]
[1756526108148,0.1,206.53,206.52,62.43027021]
[1756526109044,0.06,206.63,206.54,0.14216157]
[1756526109233,4.5803686,206.63,206.58,0.14216157]
[1756526109440,4.6403686,206.63,206.59,38.6]
[1756526109649,4.5803686,206.63,206.59,38.6]
[1756526109843,0.06,206.62,206.59,38.6]
[1756526110243,4.5803686,206.64,206.59,43.1803686]
[1756526110455,4.5803686,206.64,206.59,43.8503686]
[1756526110838,4.5803686,206.65,206.59,43.8503686]
[1756526111157,26.06,206.66,206.59,48.69068344]
[1756526111327,4.5803686,206.64,206.59,48.69068344]
[1756526111528,0.48501309,206.69,206.6,13.73775558]
[1756526111732,4.6403686,206.68,206.62,4.72253017]
[1756526111933,4.6403686,206.68,206.61,39.25]
[1756526111934,4.5803686,206.67,206.63,38.58]
[1756526112244,4.5803686,206.66,206.63,38.58]
[1756526112438,0.06,206.64,206.63,38.58]
[1756526113741,0.06,206.64,206.63,43.41956831]
[1756526114058,4.5803686,206.68,206.63,43.220368]
[1756526114364,4.5803686,206.65,206.63,43.220368]
[1756526114541,4.5803686,206.66,206.63,38.58]
[1756526114743,21.30538169,206.71,206.63,38.58]
[1756526114744,4.5803686,206.65,206.63,38.58]
[1756526115867,4.640369,206.74,206.63,38.58]
[1756526116165,4.5803686,206.68,206.63,38.58]
[1756526116738,4.640369,206.74,206.64,0.81216157]
[1756526116959,4.5803686,206.7,206.65,43.1603686]
[1756526117266,4.5803686,206.7,206.65,39.25]
[1756526117468,28.13787601,206.76,206.67,4.5803686]
[1756526117469,4.83669318,206.76,206.67,4.5803686]
[1756526117662,4.83669318,206.76,206.66,0.67]
[1756526117663,4.5803686,206.72,206.68,38.56]
[1756526118039,4.5803686,206.71,206.68,38.56]
[1756526118739,4.5803686,206.7,206.65,14.541577]
[1756526119061,4.5803686,206.69,206.66,38.56]
[1756526119560,4.5803686,206.69,206.64,14.541576]
[1756526119745,4.5803686,206.66,206.65,38.56]
[1756526120657,4.5803686,206.66,206.57,4.5803686]
[1756526120857,4.5803686,206.62,206.58,29.9]
[1756526121060,4.5803686,206.63,206.59,0.67]
[1756526121246,4.5803686,206.61,206.58,29.9]
[1756526121445,4.5803686,206.6,206.58,29.9]
[1756526121973,4.5803686,206.59,206.58,29.9]
[1756526122552,4.5803686,206.59,206.52,0.67]
[1756526122755,4.5803686,206.6,206.53,38.56]
[1756526122956,19.39125034,206.59,206.53,38.56]
[1756526123953,4.5803686,206.54,206.53,38.56]
[1756526128265,26.0,206.57,206.53,38.56]
[1756526128464,4.5803686,206.54,206.53,38.56]
[1756526128958,30.5803686,206.54,206.53,38.56]
[1756526129377,35.42226083,206.54,206.47,0.67]
[1756526129555,4.84189223,206.54,206.5,38.56]
[1756526129877,19.39758023,206.54,206.5,38.56]
[1756526130676,4.5803686,206.51,206.5,38.56]
[1756526131157,4.5803686,206.51,206.5,38.59]
[1756526132771,26.0,206.55,206.5,39.26]
[1756526132978,30.5803686,206.54,206.51,0.67]
[1756526133157,4.5803686,206.53,206.52,0.67]
[1756526134560,26.0,206.55,206.5,39.26]
[1756526134760,4.5803686,206.51,206.5,39.26]
[1756526135279,4.5803686,206.53,206.5,39.26]
[1756526135574,4.5803686,206.57,206.52,4.5803686]
[1756526135754,4.5803686,206.57,206.53,0.67]
[1756526135960,26.0,206.6,206.54,38.56]
[1756526136176,4.5803686,206.57,206.55,0.67]
[1756526136364,4.5803686,206.57,206.54,38.56]
[1756526136566,4.5803686,206.57,206.56,0.67]
[1756526136762,4.5803686,206.59,206.56,5.51103101]
[1756526136964,4.5803686,206.59,206.56,4.84103101]
[1756526137284,4.5803686,206.59,206.57,0.67]
[1756526137466,4.5803686,206.59,206.58,39.23]
[1756526138076,26.0,206.61,206.58,39.23]
[1756526138375,30.5803686,206.61,206.59,0.67]
[1756526138553,4.5803686,206.61,206.59,0.67]
[1756526138759,4.5803686,206.6,206.59,0.67]
[1756526138972,4.5803686,206.6,206.58,38.56]
[1756526139183,4.5803686,206.59,206.58,38.56]
[1756526139969,26.0,206.6,206.58,38.56]
[1756526140183,4.5803686,206.59,206.58,39.23]
[1756526141583,4.5803686,206.59,206.58,38.56]
[1756526143059,131.6,206.61,206.58,39.23]
[1756526143261,131.6,206.61,206.59,0.67]
[1756526143462,131.6,206.61,206.58,38.56]
[1756526143697,136.1803686,206.61,206.6,0.67]
[1756526144363,136.1803686,206.61,206.58,38.56]
[1756526144562,4.5803686,206.6,206.58,38.56]
[1756526144796,4.5803686,206.6,206.58,39.23]
[1756526145477,4.5803686,206.6,206.59,0.67]
[1756526145985,4.5803686,206.6,206.58,38.56]
[1756526146187,4.5803686,206.6,206.59,0.67]
[1756526147087,136.1803686,206.61,206.59,0.67]
[1756526148281,4.5803686,206.6,206.58,38.56]
[1756526148487,4.5803686,206.6,206.58,39.23]
[1756526149377,14.549335,206.65,206.59,0.67]
[1756526149594,4.5803686,206.62,206.59,0.67]
[1756526149981,4.5803686,206.62,206.6,0.67]
[1756526150208,40.547923,206.67,206.61,38.52]
[1756526150506,4.5803686,206.62,206.58,0.67]
[1756526150682,4.5803686,206.61,206.59,39.19]
[1756526150883,4.5803686,206.61,206.6,38.52]
[1756526152309,4.5803686,206.61,206.6,39.19]
[1756526152895,4.83953916,206.64,206.6,39.19]
[1756526153107,4.5803686,206.61,206.6,38.52]
[1756526153404,4.5803686,206.62,206.6,39.19]
[1756526153580,40.549334,206.65,206.6,38.52]
[1756526153581,4.5803686,206.61,206.6,38.52]
[1756526153775,45.38850717,206.65,206.6,39.19]
[1756526153974,4.5803686,206.62,206.61,0.67]
[1756526154603,4.5803686,206.62,206.6,38.52]
[1756526154791,4.5803686,206.62,206.6,39.19]
[1756526155198,4.5803686,206.61,206.58,0.67]
[1756526155400,4.5803686,206.61,206.59,38.52]
[1756526155592,4.5803686,206.61,206.59,39.19]
[1756526157207,4.5803686,206.61,206.59,38.52]
[1756526157509,4.5803686,206.61,206.6,0.67]
[1756526158079,4.83939754,206.64,206.6,0.67]
[1756526158294,4.5803686,206.61,206.6,0.67]
[1756526158997,4.83939754,206.64,206.6,0.67]
[1756526159388,4.5803686,206.62,206.6,0.67]
[1756526159898,4.5803686,206.62,206.59,38.52]
[1756526160096,4.5803686,206.62,206.59,39.19]
[1756526160707,4.5803686,206.61,206.59,39.19]
[1756526161215,4.5803686,206.61,206.6,0.72]
[1756526161384,4.5803686,206.62,206.6,0.72]
[1756526162012,4.5803686,206.62,206.59,38.52]
[1756526162210,4.5803686,206.62,206.59,39.24]
[1756526162711,4.5803686,206.62,206.6,0.72]
[1756526163897,4.5803686,206.62,206.59,38.52]
[1756526164417,4.5803686,206.62,206.6,0.72]
[1756526166715,26.0,206.63,206.6,0.72]
[1756526166903,14.548628,206.67,206.62,30.5803686]
[1756526167101,4.5803686,206.68,206.63,0.72]
[1756526167415,4.5803686,206.69,206.63,53.763692]
[1756526167589,4.5803686,206.69,206.64,0.72]
[1756526167795,4.5803686,206.68,206.64,0.72]
[1756526168023,4.5803686,206.68,206.65,0.72]
[1756526168394,4.5803686,206.68,206.63,53.043692]
[1756526168592,26.06,206.73,206.63,15.263692]
[1756526168815,19.12305531,206.72,206.64,38.5]
[1756526169024,4.5803686,206.68,206.64,38.5]
[1756526169226,5.2703686,206.68,206.64,39.22]
[1756526169520,0.69,206.68,206.64,39.22]
[1756526169694,5.2703686,206.68,206.64,39.22]
[1756526170518,5.2703686,206.68,206.64,38.5]
[1756526170519,0.69,206.68,206.64,38.5]
[1756526170718,5.2703686,206.68,206.64,38.5]
[1756526171126,5.2703686,206.67,206.64,38.5]
[1756526171343,4.5803686,206.65,206.6,0.72]
[1756526171498,4.5803686,206.65,206.61,29.68]
[1756526171699,5.2703686,206.65,206.62,38.5]
[1756526172100,131.6,206.67,206.62,39.22]
[1756526172307,136.8703686,206.67,206.62,39.22]
[1756526172825,136.8703686,206.67,206.63,0.72]
[1756526173519,0.69,206.66,206.62,38.5]
[1756526173822,0.69,206.66,206.62,39.22]
[1756526174017,131.6,206.67,206.62,44.05977589]
[1756526174319,136.1803686,206.67,206.62,38.5]
[1756526174536,0.69,206.66,206.62,38.5]
[1756526175798,0.69,206.66,206.62,39.22]
[1756526176303,136.1803686,206.67,206.62,39.22]
[1756526176625,136.8703686,206.67,206.62,39.22]
[1756526177215,132.29,206.67,206.62,39.22]
[1756526177526,136.8703686,206.67,206.62,39.22]
[1756526178913,132.29,206.67,206.62,44.05977826]
[1756526179113,136.8703686,206.67,206.63,0.72]
[1756526179330,0.69,206.66,206.62,43.33977826]
[1756526179543,0.69,206.66,206.62,44.05977826]
[1756526179704,0.69,206.66,206.62,39.22]
[1756526181233,136.1803686,206.67,206.63,0.72]
[1756526181446,136.8703686,206.67,206.63,0.72]
[1756526181736,0.69,206.66,206.63,0.72]
[1756526182138,0.69,206.66,206.62,43.0803686]
[1756526182312,136.1803686,206.67,206.58,0.75]
[1756526182313,4.5803686,206.63,206.58,0.75]
[1756526182517,0.69,206.62,206.59,38.48]
[1756526182714,0.69,206.62,206.59,43.0603686]
[1756526182931,0.69,206.64,206.61,4.5803686]
[1756526183230,0.69,206.63,206.59,38.48]
[1756526183436,0.69,206.65,206.62,38.48]
[1756526183733,0.69,206.64,206.62,38.48]
[1756526184038,0.69,206.63,206.6,4.5803686]
[1756526184334,0.69,206.62,206.61,38.48]
[1756526184521,0.69,206.62,206.58,0.03]
[1756526184719,0.69,206.62,206.59,38.48]
[1756526184934,26.0,206.63,206.59,38.48]
[1756526185139,0.69,206.61,206.59,43.0603686]
[1756526186749,0.69,206.61,206.59,38.48]
[1756526190435,132.29,206.61,206.59,38.48]
[1756526190745,131.6,206.61,206.59,38.48]
[1756526191049,131.6,206.61,206.59,39.19]
[1756526192446,131.6,206.61,206.59,38.48]
[1756526194755,0.69,206.6,206.58,0.03]
[1756526195052,18.17596261,206.59,206.58,0.03]
[1756526195235,23.01646795,206.59,206.58,0.03]
[1756526195423,23.70646795,206.59,206.58,0.03]
[1756526197246,19.12609935,206.59,206.58,0.03]
[1756526198322,23.70646795,206.59,206.58,0.03]
[1756526200353,19.12609935,206.59,206.58,0.03]
[1756526200557,23.70646795,206.59,206.58,0.03]
[1756526201537,18.86596261,206.59,206.58,0.03]
[1756526202557,26.0,206.6,206.58,0.03]
[1756526202762,30.5803686,206.6,206.58,0.03]
[1756526202964,26.0,206.6,206.58,0.03]
[1756526203142,31.2703686,206.64,206.59,0.71]
[1756526203459,5.2703686,206.63,206.6,38.48]
[1756526203665,4.83935,206.64,206.6,38.48]
[1756526203666,5.2703686,206.62,206.6,38.48]
[1756526204462,0.69,206.62,206.6,38.48]
[1756526204643,4.5803686,206.62,206.6,38.48]
[1756526204960,5.2703686,206.62,206.6,38.48]
[1756526205266,4.5803686,206.61,206.6,38.48]
[1756526206040,26.0,206.63,206.6,38.48]
[1756526206371,4.5803686,206.62,206.6,38.48]
[1756526206556,4.5803686,206.62,206.6,39.19]
[1756526207167,4.5803686,206.62,206.6,38.48]
[1756526207874,0.69,206.61,206.6,38.48]
[1756526208045,4.5803686,206.62,206.6,38.48]
[1756526208247,132.29,206.61,206.6,38.48]
[1756526208446,136.8703686,206.61,206.6,38.48]
[1756526209377,141.71040538,206.61,206.6,38.48]
[1756526209673,141.71040538,206.61,206.59,0.03]
[1756526209674,13.59559401,206.6,206.59,0.03]
[1756526209846,44.31812418,206.6,206.59,0.03]
[1756526210045,45.00812418,206.6,206.59,0.03]
[1756526211971,23.84839523,206.6,206.59,0.03]
[1756526212177,31.68465363,206.6,206.59,0.03]
[1756526213574,27.10428503,206.6,206.59,0.03]
[1756526214474,31.68465363,206.6,206.59,0.03]
[1756526214780,0.14216157,206.59,206.58,0.03]
[1756526214965,21.57401398,206.59,206.58,0.03]
[1756526215278,22.26401398,206.59,206.58,0.03]
[1756526216573,29.04556032,206.59,206.58,0.03]
[1756526217550,29.04556032,206.59,206.54,0.03]
[1756526217551,13.59559401,206.55,206.54,0.03]
[1756526217752,39.59559401,206.55,206.54,0.03]
[1756526217975,44.86596261,206.55,206.54,0.03]
[1756526218560,48.82287813,206.55,206.54,0.03]
[1756526218759,52.07921463,206.55,206.54,0.03]
[1756526219570,56.92065737,206.55,206.54,0.03]
[1756526220376,56.92065737,206.55,206.52,0.03]
[1756526220377,0.14216157,206.54,206.52,0.03]
[1756526220669,18.86596261,206.53,206.52,0.03]
[1756526220859,22.12229911,206.53,206.52,0.03]
[1756526222189,4.5803686,206.53,206.52,0.74]
[1756526222558,9.42228018,206.53,206.52,0.74]
[1756526225258,4.5803686,206.53,206.52,0.74]
[1756526226189,4.5803686,206.57,206.52,0.74]
[1756526226364,0.06,206.55,206.52,0.74]
[1756526229490,0.06,206.55,206.52,5.3203686]
[1756526229666,0.06,206.55,206.52,0.74]
[1756526230298,4.5803686,206.54,206.53,0.71]
[1756526230465,4.6403686,206.55,206.53,0.71]
[1756526230780,0.06,206.55,206.54,0.71]
[1756526233880,4.6403686,206.55,206.52,0.03]
[1756526234081,4.5803686,206.53,206.52,0.03]
[1756526234670,136.8803686,206.53,206.52,0.03]
[1756526235603,136.1803686,206.53,206.52,0.03]
[1756526237416,141.02228018,206.53,206.52,0.03]
[1756526237984,9.42228018,206.53,206.52,0.03]
[1756526238180,10.12228018,206.53,206.52,0.03]
[1756526238797,23.71787419,206.53,206.52,0.03]
[1756526240516,23.86003576,206.53,206.52,0.03]
[1756526240685,27.1172468,206.53,206.52,0.03]
[1756526241092,29.0586648,206.53,206.52,0.03]
[1756526242795,38.5,206.55,206.52,0.74]
[1756526242796,0.06,206.55,206.52,0.74]
[1756526242997,4.5803686,206.54,206.52,0.74]
[1756526243305,4.5803686,206.53,206.52,0.74]
[1756526244416,9.48205278,206.54,206.52,0.74]
[1756526245209,30.84191158,206.53,206.52,0.03]
[1756526245393,9.42228018,206.53,206.52,0.03]
[1756526246107,23.01787419,206.53,206.52,0.03]
[1756526246510,23.71787419,206.53,206.52,0.03]
[1756526249386,49.71787419,206.53,206.52,0.03]
[1756526249592,23.71787419,206.53,206.52,0.03]
[1756526251509,26.97666587,206.53,206.52,0.03]
[1756526251716,39.59559401,206.51,206.49,0.03]
[1756526252015,21.57751537,206.5,206.49,0.03]
[1756526252193,7.83975979,206.5,206.49,0.03]
[1756526252512,47.4353538,206.5,206.49,0.71]
[1756526252897,47.4353538,206.5,206.49,0.03]
[1756526253598,52.27796881,206.5,206.49,0.03]
[1756526254413,29.25939119,206.5,206.49,0.03]
[1756526254599,33.83975979,206.5,206.49,0.03]
[1756526254800,27.10013038,206.5,206.49,0.03]
[1756526255610,26.0,206.48,206.47,0.03]
[1756526255913,60.11798247,206.48,206.47,0.03]
[1756526256112,60.79798247,206.48,206.47,0.03]
[1756526256320,62.73987147,206.48,206.47,0.03]
[1756526256816,24.19987147,206.48,206.47,0.03]
[1756526257222,62.77987147,206.48,206.47,0.03]
[1756526257615,67.62295554,206.48,206.47,0.03]
[1756526257816,39.59559401,206.44,206.41,0.68]
[1756526258006,4.5803686,206.42,206.41,0.68]
[1756526258701,30.5803686,206.42,206.38,0.2]
[1756526259021,44.17596261,206.39,206.38,0.2]
[1756526259693,49.02115859,206.39,206.38,0.2]
[1756526260098,44.44078999,206.39,206.38,0.2]
[1756526260298,49.02115859,206.39,206.38,0.2]
[1756526260534,44.44078999,206.39,206.38,0.2]
[1756526260698,44.85596261,206.39,206.38,0.2]
[1756526261918,49.70115859,206.39,206.38,0.2]
[1756526262305,51.64370759,206.39,206.38,0.2]
[1756526262506,13.73775558,206.38,206.35,0.03]
[1756526262705,44.31812418,206.36,206.35,0.03]
[1756526263113,44.99812418,206.36,206.35,0.03]
[1756526263312,85.54133418,206.36,206.35,0.03]
[1756526264097,90.38723454,206.36,206.35,0.03]
[1756526264320,13.73775558,206.31,206.28,0.03]
[1756526264655,13.59559401,206.25,206.23,1e-08]
[1756526264800,16.98402313,206.24,206.23,1e-08]
[1756526265000,60.92439173,206.24,206.23,1e-08]
[1756526265303,39.59559401,206.21,206.2,0.03]
[1756526265522,44.17596261,206.21,206.2,0.03]
[1756526265725,13.73775558,206.2,206.19,0.03]
[1756526266038,27.7481533,206.2,206.19,0.03]
[1756526266228,28.4281533,206.2,206.19,0.03]
[1756526266799,0.14216157,206.2,206.19,0.03]
[1756526267003,26.0,206.2,206.19,0.03]
[1756526267226,108.35849278,206.2,206.16,0.03]
[1756526267446,13.59559401,206.08,206.02,0.68]
[1756526267603,4.5803686,206.04,206.02,0.68]
[1756526268012,30.5803686,206.07,206.03,0.68]
[1756526268421,30.5803686,206.07,206.01,4.5803686]
[1756526268622,4.5803686,206.06,206.04,0.68]
[1756526268839,4.5803686,206.06,206.05,0.68]
[1756526269025,40.28816974,206.07,206.05,0.68]
[1756526269212,40.28818441,206.07,206.05,0.68]
[1756526269540,18.31812418,206.06,206.01,0.68]
[1756526269843,4.5803686,206.03,206.01,0.68]
[1756526270011,4.5803686,206.03,205.9,37.91702504]
[1756526270012,13.59559401,206.06,206.02,0.68]
[1756526270213,26.0,206.04,206.03,0.68]
[1756526270434,26.0,206.04,205.97,4.5803686]
[1756526270435,39.59559401,206.03,205.97,4.5803686]
[1756526270732,4.85503,206.07,206.02,4.5803686]
[1756526270909,39.59559401,206.07,206.03,0.68]
[1756526271111,26.0,206.08,206.04,4.5803686]
[1756526271437,13.59559401,206.1,206.05,5.2603686]
[1756526271607,13.59559401,206.1,206.05,4.5803686]
[1756526271932,18.17596261,206.1,206.06,0.68]
[1756526272116,13.59559401,206.1,206.07,0.68]
[1756526272443,13.59559401,206.11,206.08,0.68]
[1756526272645,13.59559401,206.11,206.09,0.68]
[1756526272842,13.59559401,206.11,206.06,4.5803686]
[1756526273020,13.59559401,206.11,206.07,0.68]
[1756526273641,18.17596261,206.11,206.07,0.68]
[1756526273941,13.59559401,206.11,206.08,0.68]
[1756526274244,23.02788304,206.11,206.05,5.2603686]
[1756526274445,4.5803686,206.06,206.01,0.68]
[1756526274617,4.5803686,206.06,206.02,0.68]
[1756526274819,18.17596261,206.07,206.03,0.68]
[1756526275245,13.59559401,206.07,206.03,0.68]
[1756526275409,26.0,206.04,206.0,5.2603686]
[1756526275613,26.0,206.04,206.01,0.68]
[1756526275810,26.0,206.04,205.93,4.85601903]
[1756526276031,26.0,206.04,206.0,4.5803686]
[1756526276255,26.0,206.04,206.02,4.5803686]
[1756526276568,14.591795,206.09,206.03,4.5803686]
[1756526276755,26.0,206.09,206.04,4.5803686]
[1756526276929,30.8522678,206.09,206.04,4.5803686]
[1756526277442,35.4326364,206.09,205.97,4.43541466]
[1756526277758,35.4326364,206.09,206.03,4.5803686]
[1756526280370,18.17596261,206.12,206.06,4.5803686]
[1756526280550,44.85596261,206.12,206.06,4.5803686]
[1756526280863,44.85596261,206.12,206.0,4.5803686]
[1756526280864,4.580369,206.13,206.08,4.5803686]
[1756526281041,26.0,206.1,206.09,4.5803686]
[1756526281236,26.0,206.1,206.09,5.2503686]
[1756526281451,26.0,206.1,206.09,4.5803686]
[1756526281964,26.0,206.1,206.08,4.5803686]
[1756526282167,14.31559401,206.13,206.08,4.5803686]
[1756526282353,10.15120819,206.15,206.1,4.5803686]
[1756526282552,14.31559401,206.14,206.1,4.5803686]
[1756526282755,0.72,206.13,206.09,4.5803686]
[1756526283479,4.85151659,206.13,206.01,4.85413329]
[1756526283677,4.85151659,206.13,206.05,4.5803686]
[1756526283678,18.17596261,206.11,206.05,4.5803686]
[1756526283879,0.72,206.1,206.05,4.5803686]
[1756526284060,0.72,206.09,206.05,4.5803686]
[1756526284382,18.17596261,206.11,206.05,4.5803686]
[1756526284758,13.59559401,206.11,206.06,4.5803686]
[1756526284969,0.72,206.1,206.06,4.5803686]
[1756526285351,26.0,206.09,206.05,4.5803686]
[1756526285551,26.0,206.09,206.08,4.5803686]
[1756526286050,26.0,206.12,206.08,4.5803686]
[1756526286274,26.0,206.12,206.09,4.5803686]
[1756526286772,26.72,206.12,206.09,4.5803686]
[1756526286952,13.59559401,206.03,205.98,9.434665]
[1756526287147,0.72,206.07,205.99,0.46]
[1756526287376,4.85295544,206.06,206.02,7.3386871]
[1756526287672,0.72,206.05,206.02,7.3386871]
[1756526288057,9.434665,206.07,206.04,7.3386871]
[1756526288259,0.72,206.07,206.04,7.3386871]
[1756526288574,0.72,206.07,206.03,7.3386871]
[1756526288970,0.72,206.07,206.04,7.3386871]
[1756526289278,0.72,206.07,205.98,0.46]
[1756526289582,13.59559401,205.99,205.95,7.3386871]
[1756526289880,0.72,205.98,205.93,7.3686871]
[1756526290061,0.72,205.97,205.93,7.3686871]
[1756526290256,39.59559401,205.95,205.93,0.03]
[1756526290459,20.93428111,205.94,205.93,0.03]
[1756526290783,0.72,205.94,205.93,0.03]
[1756526290993,26.72,205.94,205.93,0.03]
[1756526291379,8.0586871,205.97,205.93,0.03]
[1756526291577,26.0,205.96,205.93,7.3686871]
[1756526292084,13.59559401,205.99,205.93,7.3686871]
[1756526292271,13.59559401,205.99,205.94,7.3386871]
[1756526292468,7.368688,206.0,205.93,0.03]
[1756526292693,13.59559401,206.01,205.96,7.3386871]
[1756526292868,0.72,206.0,205.96,7.3386871]
[1756526293476,33.3386871,206.02,205.96,7.3386871]
[1756526293684,19.16928702,206.03,205.98,7.3386871]
[1756526294694,18.44928702,206.03,205.98,7.3386871]
[1756526294986,0.72,206.02,205.97,7.3386871]
[1756526295289,7.3386871,206.0,205.93,0.03]
[1756526295463,26.0,205.96,205.93,0.03]
[1756526295661,20.93428111,205.94,205.93,0.03]
[1756526295997,21.07644268,205.94,205.93,0.03]
[1756526296302,21.79644268,205.94,205.93,0.03]
[1756526296907,26.65222591,205.94,205.93,0.03]
[1756526297601,26.14216157,205.91,205.9,0.03]
[1756526297775,47.07644268,205.91,205.9,0.03]
[1756526297970,47.79644268,205.91,205.9,0.03]